{"text_format":"3","workbook":"xlsx","n_sheets":12,"sheets":["Início","1. Adicionar","2. Preencher","3. Dividir","4. Transpor","5. Classificar e filtrar","6. Tabelas","7. Listas suspensas","8. Análise","9. Gráficos","10. Tabelas Dinâmicas","Saiba mais"],"not_rendered":{"charts":2,"images":39,"defined_names":19,"pivot_tables":1},"read":"whole","date_system":"1900"}

{"sheet":"Início","index":0,"n_rows":4,"n_cols":1,"rows_kept":4}
["Bem-vindo ao tour. \nInstruções para leitores de tela: Em apenas 10 etapas, você estará usando o Excel, o aplicativo de planilha mais popular do mundo. \nHá mais 11 planilhas neste tour. As instruções de cada planilha começam na célula A1, e todas as etapas subsequentes estão nas células A2, A3 e assim por diante. \nAs instruções indicam para quais células navegar para o uso de um recurso ou leitura adicional.\nPara iniciar, pressione Ctrl+Page Down."]
["Fazer um tour"]
["Em apenas 10 etapas, você estará usando o\nExcel, o aplicativo de planilha mais popular do mundo."]
["Volte ao início pressionando Ctrl+Home. Para iniciar o tour, pressione Ctrl+Page Down."]

{"sheet":"1. Adicionar","index":1,"n_rows":91,"n_cols":7,"rows_kept":91}
["Adicionar números como um especialista"]
["Aqui estão algumas maneiras de adicionar números no Excel:"]
["As células C3 a D7 contêm dados com duas colunas. Um para Fruta e outro para Valor. ",null,"Fruta","Valor",null,"Carne","Valor"]
["Vá para D8 pressionando Ctrl+G, digite D8 e pressione Enter.",null,"Maçãs",50,null,"Vaca",50]
["Digite =SOMA(D4:D7) pressione ENTER.",null,"Laranjas",20,null,"Frango",30]
["O resultado é 170. ",null,"Bananas",60,null,"Porco",10]
["Esta é outra maneira de adicionar, usando uma tecla de atalho. As células F3 a G7 contêm dados com duas colunas: Carne e Valor.",null,"Limões",40,null,"Peixe",50]
["Vá para a célula G8. Pressione Alt+= e pressione Enter."]
["O resultado na célula G8 é 140."]
["Essa é outra maneira de adicionar. As células C10 a D15 têm duas colunas de dados: Item e Valor.",null,"Item","Valor",null,"Item","Valor"]
["Agora, adicione apenas os números acima de 50. Vá para a célula D16. Digite =SOMASE(D11:D15;\">50\") e pressione Enter. O resultado será 100.",null,"Pão",50,null,"Pão",50]
["CRÉDITO ADICIONAL: As células F10 a G15 contêm dados com duas colunas: Item e Valor. Vá para a célula G16. Experimente adicionar outra fórmula SOMASE aqui. Some valores na coluna G, células G11 para G15, mas adicione valores inferiores a 100. O resultado será 160.",null,"Roscas",100,null,"Roscas",100]
["Veja mais detalhes abaixo: Vá para A27. Ou, para ir até a próxima etapa, pressione Ctrl+Page Down.",null,"Biscoitos",40,null,"Biscoitos",40]
[null,null,"Bolos",50,null,"Bolos",50]
[null,null,"Tortas",20,null,"Tortas",20]
{"$rows_empty":11}
["Mais sobre a função SOMA "]
["Em algumas das dicas acima, mostramos como usar a função SOMA. Aqui estão mais detalhes a respeito."]
["As células C37 a D41 contêm dados com duas colunas: Fruta e Valor. "]
["A fórmula na célula D42: =SOMA(D38:D41)."]
["Se a função SOMA na célula D42 pudesse falar, diria isso: Some os valores nas células D38, D39, D40 e D41."]
["Esta é outra maneira que pode ser usada:"]
["As células C47 a D48 contêm dados com duas colunas: Item e Valor. "]
["As células F47 a G51 contêm dados com duas colunas: Item e Valor. "]
["As células E53 a E54 contêm dados com uma coluna: Total."]
["A fórmula na célula E54: =SUM(D48, G48:G51,100)."]
["Se a fórmula na célula E54 pudesse falar, diria: Some os seguintes: o valor na célula D48, os valores nas células G48, G49, G50 e G51 e 100.",null,"Fruta","Valor"]
["A fórmula na célula E54 usa o seguinte:",null,"Maçãs",50]
["• Uma referência de célula única, que é o \"endereço\" ou o \"nome\" de uma célula. D48 é a referência de célula única na fórmula acima. ",null,"Laranjas",20]
["• Um intervalo de células, que é uma série de células começando em uma célula e terminando em outra. G48:G51 é o intervalo de células na fórmula. ",null,"Bananas",60]
["• Uma constante, que é o número 100. ",null,"Limões",40]
["DETALHE IMPORTANTE: Vá para a célula E54. Você observará 100 próximo ao fim da fórmula. Embora seja possível colocar números em uma fórmula como esta, não é recomendável, a menos que seja absolutamente necessário. Isso é conhecido como uma constante, e é fácil esquecer que está presente. É recomendável fazer referência a outra célula em vez disso, como a célula D16. Assim, ela é vista facilmente e não é ocultada em uma fórmula. ",null,null,{"$f":"SUM(D38:D41)","v":170}]
["Vá para a célula A66 para a próxima instrução."]
[]
[]
[]
[null,null,"Item","Valor",null,"Item","Valor"]
[null,null,"Tabela",20,null,"Carros",20]
[{"$nulls":5},"Caminhões",10]
[{"$nulls":5},"Bicicletas",10]
[{"$nulls":5},"Skates",40]
[]
[{"$nulls":4},"Total:"]
[{"$nulls":4},{"$f":"SUM(D48,G48:G51,100)","v":200}]
{"$rows_empty":11}
["Mais sobre a função SOMASE "]
["Também mostramos a função SOMASE na parte superior desta planilha nas células A10 e A11. A função SOMASE soma totais com base em um critério. "]
["As células C72 a D77 contêm dados com duas colunas: Item e Valor. "]
["A fórmula na célula D78: =SOMASE(D73:D77,\">50\")."]
["Se a função SOMASE pudesse falar, diria: Some alguns valores com base neste critério, procure as células D73 a D77 e, se o valor for maior que 50, some-o."]
["OBSERVAÇÃO: se você achar que está usando muitas fórmulas SOMASE, talvez considere uma Tabela Dinâmica a melhor solução. Confira mais informações na planilha de Tabela Dinâmica."]
["As células F72 a G77 contêm dados com duas colunas: Item e Valor. ",null,"Item","Valor",null,"Item","Valor"]
["É BOM SABER: Vá para a célula G78. A fórmula na célula G78: =SUMIF(G73:G77, \">=50\") é diferente da fórmula na célula D78. Especificamente, os critérios de soma são \">=50\", o que significa maior ou igual a 50. Há outros operadores que você pode usar, como \"<=50\", que é menor ou igual a 50. E há \"<>50\", que é não igual a 50. \n",null,"Pão",50,null,"Pão",50]
["Vá para a célula A86 para a próxima instrução.",null,"Roscas",100,null,"Roscas",100]
[null,null,"Biscoitos",40,null,"Biscoitos",40]
[null,null,"Bolos",50,null,"Bolos",50]
[null,null,"Tortas",20,null,"Tortas",20]
[{"$nulls":3},{"$f":"SUMIF(D73:D77,\">50\")","v":100},null,null,{"$f":"SUMIF(G73:G77,\">=50\")","v":200}]
{"$rows_empty":7}
["Mais informações na Web"]
["Tudo sobre a função SOMA"]
["Tudo sobre a função SOMASE"]
["Usar o Excel como sua calculadora"]
["Treinamento grátis sobre o Excel online"]
["Volte ao início pressionando Ctrl+Home. Para ir até a próxima etapa, pressione Ctrl+Page Down."]

{"sheet":"2. Preencher","index":2,"n_rows":67,"n_cols":8,"rows_kept":67}
["Poupar tempo preenchendo células automaticamente"]
["Veja como usar o recurso de preenchimento no Excel:"]
["As células C3 a G7 contêm dados com cinco colunas: coluna \"Isso:\", que contém o número 50 em cada célula; coluna \"Mais isso:\", que contém os números 50, 60, 70 e 80; coluna \"Igual a:\", com a célula E4 contendo uma soma das células C4 e D4; coluna \"Mais isso:\"que contém o número 75 em cada célula; e coluna \"Igual a:\" com a célula G4, que contém a soma de células E4 e F4.",null,"Isso:","Mais isso:","É igual a:","Mais isso:","É igual a:"]
["Vá para a célula E4. Pressione Ctrl+G, digite E4 e pressione Enter. ",null,50,50,{"$f":"SUM(C4:D4)","v":100},75,{"$f":"SUM(E4:F4)","v":175}]
["Selecione as células E4, E5, E6 e E7 mantendo pressionada a tecla Shift enquanto pressiona a tecla Seta para baixo e pressione Ctrl+D. O Excel preencherá automaticamente as células com os totais: 110, 120 e 130. As pessoas chamam isso de \"preenchimento para baixo\".",null,50,60,null,75]
["CRÉDITO ADICIONAL: Vá para a célula G4 e repita as etapas de preenchimento anteriores.",null,50,70,null,75]
["As células C10 a G14 contêm dados com cinco colunas. Essas colunas contêm o título de C3 a G3 e os valores das células C4 a G7 depois de executar as etapas nas células A5 e A6.",null,50,80,null,75]
["Vá para a célula C15. Selecione as células C15 D15, E15, F15 e G15. Dessa vez, pressione Ctrl+R para preencher as células. Isso é conhecido como \"preenchimento à direita\"."]
["Veja mais detalhes abaixo: Vá para a célula A27. Ou, para ir até a próxima etapa, pressione Ctrl+Page Down."]
[null,null,"Isso:","Mais isso:","É igual a:","Mais isso:","É igual a:"]
[null,null,50,50,{"$f":"SUM(C11:D11)","v":100},75,{"$f":"SUM(E11:F11)","v":175}]
[null,null,50,60,{"$f":"SUM(C12:D12)","v":110},75,{"$f":"SUM(E12:F12)","v":185}]
[null,null,50,70,120,75,195]
[null,null,50,80,130,75,205]
[null,null,{"$f":"SUM(C11:C14)","v":200}]
{"$rows_empty":11}
["Usar a alça de preenchimento para copiar células"]
["Às vezes, você não precisa alterar os números ao preencher. Em vez disso, você só quer copiar valores para outras células adjacentes. Veja como fazer isso:"]
["As células C33 até a célula F37 contêm quatro colunas: Departamento, Categoria, Produto e Contagem. "]
["Vá para a célula C34. Selecione C34, C35, C36, C37 e pressione Ctrl+D. O valor em C34 é preenchido para baixo nas células selecionadas."]
["Vá para a célula A64 para a próxima instrução."]
[]
[null,null,"Depart.:","Categoria","Produto","Contagem"]
[null,null,"Hortifrúti","Fruta","Maçã",100]
[{"$nulls":4},"Laranja",200]
[{"$nulls":4},"Banana",50]
[{"$nulls":4},"Peras",100]
{"$rows_empty":8}
[{"$nulls":3},"Jan"]
[null,null,"Semana 1",35,44,79,null,"Trimestre 1"]
[{"$nulls":3},74,64,56]
[{"$nulls":3},82,50,83]
[{"$nulls":3},90,22,89]
{"$rows_empty":9}
[null,null,"Intervalos"]
[null,null,15,30]
[]
[]
["Mais informações na Web"]
["Preencher dados automaticamente em células de planilha"]
["Preencher uma fórmula para baixo em células adjacentes"]
["Volte ao início pressionando Ctrl+Home. Para ir até a próxima etapa, pressione Ctrl+Page Down."]

{"sheet":"3. Dividir","index":3,"n_rows":86,"n_cols":8,"rows_kept":86}
["Dados inseridos em uma coluna? Divida-os."]
["Vá para a célula D5. Pressione Ctrl+G, digite D5 e pressione Enter. Digite o nome que está na coluna Email na célula B5: Bruna"]
["Vá para a célula D6. Pressione Ctrl+E, um atalho para o Preenchimento Relâmpago."]
["O Preenchimento Relâmpago detecta quando você digita um padrão consistente e preenche as células depois que o padrão é detectado. ",null,"Email","Nome","Sobrenome"]
["Experimente outra forma de Preenchimento Relâmpago: Vá para a célula E5.",null,"Bruna.Melo@contoso.com",null,"Melo"]
["Pressione Alt+C para entrar na guia Página Inicial acima da faixa de opções e pressione FE para selecionar opções de Preenchimento. Seta para baixo para selecionar o Preenchimento Relâmpago na lista ou pressione N. Agora os sobrenomes estão em sua própria coluna, das células E5 a E9.",null,"Carlos.Lima@fabrikam.com"]
["Veja mais detalhes abaixo: Vá para a célula A27. Ou, para ir até a próxima etapa, pressione Ctrl+Page Down.",null,"Henrique.Cunha@relecloud.com"]
[null,null,"Mila.Moraes@contoso.com"]
[null,null,"Maria.Schmidt@fabrikam.com "]
{"$rows_empty":17}
["Dividir uma coluna com base em delimitadores."]
["O Preenchimento Relâmpago é muito útil. Porém, se você quer dividir dados em mais de uma coluna ao mesmo tempo, essa não é a melhor ferramenta para o trabalho. Experimente Texto para Colunas nesta situação:"]
["Vá para a célula C32. Selecione todas as células de C32 a C39: Bruna até Maria. "]
["Pressione Alt+S para inserir a guia Dados acima da faixa de opções e pressione C para selecionar Texto para Colunas na seção Ferramentas de Dados. Assistente para Converter Texto em Colunas - a etapa 1 de 3 é exibida. Verifique se o botão de opção Delimitado está marcado e pressione Enter. Use a tecla Tab para navegar pela caixa de diálogo."]
["Assistente para Converter Texto em Colunas - etapa 2 de 3: Pressione Tab para localizar a opção Vírgula em Delimitadores. Verifique se Vírgula é a única caixa de seleção marcada, pressione a tecla Tab para selecionar Avançar e pressione Enter.",null,"Dados","Nome","Sobrenome","Nome da empresa"]
["Assistente para Converter Texto em Colunas - etapa 3 de 3: pressione a tecla Tab e selecione somente a opção Geral. ",null,"Bruna,Melo,Contoso Ltd."]
["Por fim, pressione tab até entrar na caixa de texto de Destino. Digite $D$32 e pressione Enter.",null,"Carlos,Lima,Fabrikam Inc."]
["VALE A PENA EXPLORAR: Há outra maneira de trabalhar com dados. Você pode consultar uma fonte externa e pode dividir os dados provenientes da fonte. Basta fazer isso uma vez para que os dados se tornem atualizáveis e seja fácil trabalhar com eles. Curioso? Selecione a guia Dados (Alt+S) e explore as opções na área de Obter e Transformar (pressione um destes itens: PN, FT, FW, PT, PR ou X). Ou vá para a célula A80 para ver mais informações na Web.",null,"Henrique,Cunha,Relecloud"]
["Vá para a célula A49 para a próxima instrução.",null,"Mila,Moraes, Contoso Ltd."]
[null,null,"Pedro,Gonçalves,Relecloud"]
[null,null,"Donato,Dias,Fabrikam Inc."]
[null,null,"Diogo,Martins, Relecloud"]
[null,null,"Maria,Schmidt,Contoso Ltda."]
{"$rows_empty":9}
["Dividir uma coluna com fórmulas"]
["Talvez você queira escrever uma fórmula para dividir dados. Assim, se os dados originais forem atualizados, os dados divididos também serão atualizados. Isso é mais avançado. Porém, é possível usando algumas funções: ESQUERDA, DIREITA, LOCALIZAR e NÚM.CARACT. Confira mais informações sobre cada uma dessas funções, nos links na parte inferior desta planilha em Mais informações na Web, começando na célula A80. Se você estiver curioso, veja como dividimos a célula C56."]
["Vá para a célula E56: Maria. Usamos a função ESQUERDA para extrair caracteres do lado esquerdo da célula C56. Para especificar o número de caracteres a serem extraídos, usamos a função LOCALIZAR. Veja como a fórmula \"=ESQUERDA(C56,LOCALIZAR(\" \",C56)-1)\" funciona:"]
["A função Esquerda extrai um número especificado de caracteres do lado esquerdo da célula C56.\n\n"]
["A função Localizar é usada para determinar o número de caracteres a serem extraídos. Veja como funciona a função Localizar: Localize o número de posição do caractere do primeiro espaço na célula C56. Subtraia 1 para excluir o próprio espaço\n"]
["O resultado é Maria."]
["Em seguida, criamos uma [coluna Auxiliar]. Isso foi apenas para \"ajudar\" a extrair o outro texto na célula. Ela é indicada como temporária e sempre pode ser ocultada mais tarde. ",null,"Nome dentro de uma célula",null,"Nome","[coluna Auxiliar]","Nome do meio","Sobrenome"]
["Selecione a célula F56: Eduarda Schmidt na [coluna Auxiliar]. Você verá que usamos as funções DIREITA, NÚM.CARACT. e LOCALIZAR para extrair caracteres do primeiro espaço na célula C56, até o fim da célula. ",null,"Maria Eduarda Schmidt",null,{"$f":"LEFT(C56,FIND(\" \",C56)-1)","v":"Maria"},{"$f":"RIGHT(C56,LEN(C56)-FIND(\" \",C56))","v":"Eduarda Schmidt"},{"$f":"LEFT(F56,FIND(\" \",F56)-1)","v":"Eduarda"},{"$f":"RIGHT(F56,LEN(F56)-FIND(\" \",F56))","v":"Schmidt"}]
["Veja como esta fórmula \"=DIREITA(C56,NÚM.CARACT(C56)-LOCALIZAR(\" \",C56))\" funciona:"]
["A função Direita extrai um número especificado de caracteres do lado direito da célula C56."]
["Nesse caso, a função NÚM.CARACT é usada para determinar o número de caracteres a serem extraídos. Veja como funciona a função NÚM.CARACT: Conte o número de caracteres na célula C56 e subtraia o número de caracteres da função Localizar, que localiza o número de posição do caractere do primeiro espaço na célula C56 e retorna o número de caracteres até o espaço. "]
["O resultado é Eduarda Schmidt."]
["Selecione a célula G56: Eduarda. Aqui usamos praticamente a mesma fórmula usada na célula A51, mas em vez de extrair caracteres na célula C56, ela extrai da célula F56. \n"]
["Selecione a célula H56: McKay. Essa é a mesma fórmula que a da etapa A57, mas extrai caracteres de F56 em vez da célula C56. "]
["Vá para a célula A79 para a próxima instrução."]
{"$rows_empty":15}
["Mais informações na Web"]
["Dividir texto em colunas diferentes"]
["Tudo sobre Obter e Transformar "]
["Tudo sobre a função ESQUERDA"]
["Tudo sobre a função DIREITA"]
["Tudo sobre a função LOCALIZAR"]
["Tudo sobre a função NÚM.CARACT"]
["Volte ao início pressionando Ctrl+Home. Para ir até a próxima etapa, pressione Ctrl+Page Down."]

{"sheet":"4. Transpor","index":4,"n_rows":76,"n_cols":8,"rows_kept":76}
["Mudar dados transpondo-os"]
["Quando precisa girar colunas e linhas, você as transpõe no Excel."]
["As células C5 a H6 contêm duas linhas de itens e valores. Selecione as células C5 a H6."]
["Agora você copiará as células. Pressione Ctrl+C."]
["Selecione a célula C9.",null,"Item","Pão","Roscas","Biscoitos","Bolos","Tortas"]
["Pressione Alt+C para entrar na guia Página Inicial acima da faixa de opções e pressione V para selecionar opções de Colar. Seta para baixo ou pressione S para selecionar Colar Especial. ",null,"Valor",50,100,40,50,20]
["Pressione Tab até encontrar Transpor. Pressione a Barra de espaços para selecionar Transpor e pressione Enter."]
["DICA ESPECIALIZADA: A tecla de atalho para Colar Especial é Ctrl+Alt+V. \n"]
["Veja mais detalhes abaixo: Vá para A27. Ou, para ir até a próxima etapa, pressione Ctrl+Page Down."," para prosseguir para a próxima etapa"]
{"$rows_empty":17}
["Transpor com uma fórmula"]
["Às vezes, você não deseja copiar e colar para transpor. Nesse caso, você pode usar uma fórmula para transpor linhas e colunas. Veja como fazer isso:"]
["Para transpor esses dados, primeiro você precisa selecionar algumas células em branco. Como os dados nas células C33 a H34 à direita têm duas linhas e seis colunas, é necessário selecionar o oposto: seis linhas e duas colunas. Faça isso selecionando as células C40 a D45. "]
["Isso é meio complicado, então, preste muita atenção. Com essas células ainda selecionadas, digite o seguinte: =TRANSPOR(C33:H34) ...mas não pressione Enter Em vez disso, pressione Ctrl+Shift+Enter. Se você receber um erro ou #VALUE! como resultado, tente iniciar novamente na instrução da célula A29. \n"]
["Selecione qualquer uma das células transpostas; por exemplo, a célula C41. Examine a fórmula na parte superior do Excel. Você verá que a fórmula tem esta aparência: {=TRANSPOR(C33:H34)}"]
["Selecione outra célula transposta das células C40 a D45; por exemplo, a célula D43. Confira a barra de fórmulas novamente. A fórmula é igual à da célula C41. Por quê? Porque essa é uma fórmula de matriz.\n"]
["Vá para a célula A54 para a próxima instrução.",null,"Item","Pão","Roscas","Biscoitos","Bolos","Tortas"]
[null,null,"Valor",50,100,40,50,20]
{"$rows_empty":19}
["O que é uma fórmula de matriz?"]
["Uma fórmula de matriz pode efetuar cálculos em mais de uma célula em uma matriz. No exemplo acima, a matriz é o conjunto de dados original nas células C33:H34. A função TRANSPOR alterna a a orientação horizontal das células para uma orientação vertical. "]
["Você sempre conclui uma fórmula de matriz com Ctrl+Shift+Enter, não apenas Enter. O pressionamento de Ctrl+Shift+Enter calcula a função em relação à matriz. Quando você terminar, o Excel colocará colchetes especiais {} em torno da fórmula. Esses colchetes são uma indicação visual de que a célula selecionada faz parte de uma fórmula de matriz. Você não pode digitar esses colchetes. O Excel os inclui quando você pressiona Ctrl+Shift+Enter. "]
["LEMBRE-SE...\nHá três coisas a lembrar ao usar uma fórmula de matriz: \n1) Sempre selecione várias células primeiro e, com as células selecionadas, comece a digitar a fórmula de matriz. Essa é a chave: Selecione várias células primeiro e, depois, comece a digitar.\n2) Quando terminar digitar uma fórmula de matriz, pressione Ctrl+Shift+Enter.\n3) Após inserir uma fórmula de matriz, você não pode interromper essa nova matriz. Por exemplo, você não pode digitar sobre ou excluir apenas uma das células. Você também não pode inserir uma nova linha ou coluna dentro dessa matriz. Se precisar de algum desses itens, selecione todas as células que têm a fórmula de matriz, pressione a tecla Delete, faça as alterações e recrie a fórmula."]
["FALA DO EXCEL: Como fórmulas de matriz exigem Ctrl+Shift+Enter, algumas pessoas chamam informalmente as fórmulas de matriz de \"Fórmulas CSE\". \n"]
["Vá para a célula A72 para a próxima instrução."]
{"$rows_empty":12}
["Mais informações na Web"]
["Transpor (girar) dados de linhas para colunas ou vice-versa"]
["Tudo sobre a função TRANSPOR"]
["Criar uma fórmula de matriz"]
["Volte ao início pressionando Ctrl+Home. Para ir até a próxima etapa, pressione Ctrl+Page Down."]

{"sheet":"5. Classificar e filtrar","index":5,"n_rows":63,"n_cols":7,"rows_kept":63}
["Classificar e filtrar com facilidade"]
["As células C5 a G13 contêm cinco colunas: Departamentos, Categorias e Valores para os meses Out, Nov, Dez."]
["Digamos que você queira colocar os departamentos em ordem alfabética. Selecione a coluna Departamento e vá para a célula C5. Pressione Ctrl+G, digite C5 e pressione Enter. Agora, pressione Alt+C para entrar na guia Página Inicial acima da faixa de opções e pressione S para inserir as opções de Classificar e Filtrar. Use as teclas de direção para localizar a opção para Classificar de A a Z ou pressione C e pressione Enter. "]
["Classificar os valores de dezembro do maior para o menor. Selecione a célula da coluna Dezembro, vá para G5 e selecione as células G5 a G13. Pressione Alt+C para entrar na guia Página Inicial acima da faixa de opções e pressione S para opções de Classificar e Filtrar. Observe que as opções foram alteradas de Classificar de A a Z para Classificar do Maior para o Menor e assim por diante. Use as teclas de direção para localizar a opção para Classificar do Maior para o Menor e pressione Enter. "]
["Agora, você filtrará os dados para que somente as linhas de Confeitaria apareçam. Vá para a célula G5, Dezembro. Pressione Ctrl+A para selecionar todas as células e pressione Alt+C para entrar na guia Página Inicial. Pressione S para entrar nas opções de Classificar e Filtrar e use as teclas de direção para localizar a opção de Filtro ou pressione F.",null,"Departamento","Categoria","Out","Nov","Dez"]
["Botões de filtro aparecem na linha superior da célula C5 a G5. Vá para a célula Departamento, C5, e pressione Alt+Seta para baixo e Seta para cima e Barra de espaços para desmarcar a caixa de seleção Selecionar Tudo. Em seguida, use as teclas de direção para localizar Confeitaria, pressione a Barra de Espaço e pressione Enter.",null,"Carne","Vaca",{"v":90000,"d":"R$ 90,000"},{"v":110000,"d":"R$ 110,000"},{"v":120000,"d":"R$ 120,000"}]
["CRÉDITO ADICIONAL: Tente classificar em ordem alfabética por duas colunas. Veja como: Primeiro classifique em ordem alfabética por Departamento (confira as etapas na célula A3 acima). Selecione a guia Página Inicial e opções de Classificar e Filtrar. Localize Classificação Personalizada e adicione um segundo nível de categoria. Depois que você de selecionar OK, Departamento será classificado e, em cada departamento, linhas de Categoria serão classificadas em ordem alfabética também. ",null,"Confeitaria","Sobremesas",{"v":25000,"d":"R$ 25,000"},{"v":80000,"d":"R$ 80,000"},{"v":120000,"d":"R$ 120,000"}]
["Veja mais detalhes abaixo: Vá para A27. Ou, para ir até a próxima etapa, pressione Ctrl+Page Down.",null,"Hortifrúti","Fruta",{"v":10000,"d":"R$ 10,000"},{"v":30000,"d":"R$ 30,000"},{"v":40000,"d":"R$ 40,000"}]
[null,null,"Hortifrúti","Legumes e Verduras",{"v":30000,"d":"R$ 30,000"},{"v":80000,"d":"R$ 80,000"},{"v":30000,"d":"R$ 30,000"}]
[null,null,"Lanchonete","Saladas",{"v":90000,"d":"R$ 90,000"},{"v":35000,"d":"R$ 35,000"},{"v":25000,"d":"R$ 25,000"}]
[null,null,"Carne","Galinha",{"v":75000,"d":"R$ 75,000"},{"v":82000,"d":"R$ 82,000"},{"v":2000000,"d":"R$ 2,000,000"}]
[null,null,"Confeitaria","Pães",{"v":30000,"d":"R$ 30,000"},{"v":15000,"d":"R$ 15,000"},{"v":20000,"d":"R$ 20,000"}]
[null,null,"Lanchonete","Sanduíches",{"v":80000,"d":"R$ 80,000"},{"v":40000,"d":"R$ 40,000"},{"v":20000,"d":"R$ 20,000"}]
{"$rows_empty":13}
["Classificar por data ou até por cor"]
["Há várias maneiras de classificar no Excel. Aqui estão apenas duas outras maneiras de classificar:"]
["As células C31 a F31 contêm dados com quatro colunas: Data da despesa, Funcionário, Alimentação e Hotel."]
["Você deseja as datas de Despesas em ordem. Portanto, selecione o cabeçalho de Data de despesas, a célula C31, pressione Alt+Seta para baixo e use as teclas de direção para localizar Classificar do Mais Antigo para o Mais Recente. Pressione Enter. As linhas são classificadas em ordem de data crescente pela data de Despesas."]
["Alguém preencheu três células com amarelo. Você pode classificar as linhas por essa cor. Vá para a célula F31, pressione Alt+Seta para baixo e use as teclas de direção para localizar a opção Classificar por Cor. Pressione a Seta para a direita para selecionar a cor de realce \"amarelo\", cor rgb 255, 255, 0 e pressione Enter. As células realçadas são classificadas automaticamente na parte superior dentro da coluna.",null,"Data da despesa","Funcionário","Alimentação","Hotel"]
["DETALHE IMPORTANTE: Não é possível limpar uma ordem de classificação como se faz com um filtro. Portanto, se você não quiser manter a classificação, desfaça-a pressionando Ctrl+Z.\n",null,{"$f":"TODAY()-2","v":"2020-03-10"},"Brenda",{"v":21,"d":"R$ 21"},{"v":3820,"d":"R$ 3,820"}]
["Vá para a célula A43 para a próxima instrução.",null,{"$f":"TODAY()-3","v":"2020-03-09"},"Marco",{"v":62,"d":"R$ 62"},{"v":2112,"d":"R$ 2,112"}]
[null,null,{"$f":"TODAY()-6","v":"2020-03-06"},"Davi",{"v":25,"d":"R$ 25"},{"v":1611,"d":"R$ 1,611"}]
[null,null,{"$f":"TODAY()","v":"2020-03-12"},"Letícia",{"v":30,"d":"R$ 30"},{"v":3085,"d":"R$ 3,085"}]
[null,null,{"$f":"TODAY()-4","v":"2020-03-08"},"Fábio",{"v":69,"d":"R$ 69"},{"v":528,"d":"R$ 528"}]
[null,null,{"$f":"TODAY()-5","v":"2020-03-07"},"Laura",{"v":45,"d":"R$ 45"},{"v":5050,"d":"R$ 5,050"}]
[]
[]
[]
[]
[]
["Mais maneiras de filtrar dados"]
["As células C49 a F49 contêm dados com quatro colunas: Data da despesa, Funcionário, Alimentação e Hotel."]
["Vá para a célula F49: Hotel. Pressione Alt+Seta para baixo e use as teclas de direção para localizar a opção Filtros de Número. Pressione a Seta para a direita para entrar na lista de Filtros de Número, use as teclas de direção para localizar a opção Acima da Média e pressione Enter. O Excel calcula o valor médio da coluna Hotel e mostra somente as linhas com um valor maior do que essa média. "]
["Agora, adicione um segundo filtro. Vá para a célula E49: Alimentos. Pressione Alt+Seta para baixo e use as teclas de direção para localizar a opção Filtros de Número Pressione a Seta para a direita para entrar na lista de Filtros de Número. Use as teclas de direção para localizar a opção Maior que..., digite 25 e pressione Enter. Das três linhas que foram filtradas como sendo acima da média, o Excel mostra duas linhas com valores de Alimentos maiores que 25"]
["Vá para a célula A60 para a próxima instrução."]
[]
[null,null,"Data da despesa","Funcionário","Alimentação","Hotel"]
[null,null,{"$f":"TODAY()-2","v":"2020-03-10"},"Brenda",{"v":21,"d":"R$ 21"},{"v":3820,"d":"R$ 3,820"}]
[null,null,{"$f":"TODAY()-3","v":"2020-03-09"},"Marco",{"v":62,"d":"R$ 62"},{"v":2112,"d":"R$ 2,112"}]
[null,null,{"$f":"TODAY()","v":"2020-03-12"},"Letícia",{"v":30,"d":"R$ 30"},{"v":3085,"d":"R$ 3,085"}]
[null,null,{"$f":"TODAY()-6","v":"2020-03-06"},"Davi",{"v":25,"d":"R$ 25"},{"v":1611,"d":"R$ 1,611"}]
[null,null,{"$f":"TODAY()-5","v":"2020-03-07"},"Laura",{"v":45,"d":"R$ 45"},{"v":5050,"d":"R$ 5,050"}]
[null,null,{"$f":"TODAY()-4","v":"2020-03-08"},"Fábio",{"v":69,"d":"R$ 69"},{"v":528,"d":"R$ 528"}]
[]
[]
[]
[]
["Mais informações na Web"]
["Classificar dados em um intervalo ou uma tabela"]
["Filtrar dados em um intervalo ou uma tabela"]
["Volte ao início pressionando Ctrl+Home. Para ir até a próxima etapa, pressione Ctrl+Page Down."]

{"sheet":"6. Tabelas","index":6,"n_rows":76,"n_cols":8,"rows_kept":76}
["As tabelas tornam tudo mais fácil"]
["Uma tabela oferece recursos especiais e conveniências. Veja como criá-la:"]
["As células C5 a G13 contêm dados. Vá para qualquer célula dentro de uma região; por exemplo, a célula D8. Pressione Ctrl+G, digite D8 e pressione Enter."]
["Pressione Alt+T para entrar na guia Inserir acima da faixa de opções, pressione TA e pressione Enter. Ou pressione as combinação de teclas de atalho Ctrl+T e Enter."]
["Agora você tem uma tabela, que é uma coleção de células com recursos especiais. Para começar: Uma tabela fornece linhas em tiras para facilitar a leitura.",null,"Departamento","Categoria","Out","Nov","Dez"]
["Você também pode criar novas linhas facilmente. Vá para a célula vazia sob a célula C13: Carne. Digite texto e pressione Enter. Uma nova linha da tabela é exibida. ",null,"Hortifrúti","Legumes e Verduras",30000,80000,30000]
["Você também pode criar colunas facilmente: Vá para qualquer célula entre H5 e H14; por exemplo, H10. Digite texto e pressione Enter. Uma nova coluna da tabela é exibida. Repita o processo para adicionar uma nova coluna na coluna I.",null,"Hortifrúti","Fruta",10000,30000,40000]
["Observe como duas colunas são criadas e formatadas e o texto Jan e Fev é preenchido nas células H5 e I5 para você.",null,"Confeitaria","Pães",30000,15000,20000]
["CRÉDITO ADICIONAL: Tente alterar o estilo de tabela. Primeiro, selecione uma célula dentro da tabela entre células C5 e I14. A Guia Design de Ferramentas de Tabela será exibida na parte superior do Excel. Pressione Alt+JI para entrar na guia Design acima da faixa de opções e pressione S para inserir Estilos de Tabela. Use as teclas de direção para navegar pelas opções e selecione um estilo de tabela que lhe agrade.\n",null,"Confeitaria","Sobremesas",25000,80000,120000]
["Veja mais detalhes abaixo: Vá para A27. Ou, para ir até a próxima etapa, pressione Ctrl+Page Down.",null,"Lanchonete","Sanduíche",80000,40000,20000]
[null,null,"Lanchonete","Saladas",90000,35000,25000]
[null,null,"Carne","Vaca",90000,110000,200000]
[null,null,"Carne","Frango",75000,82000,150000]
{"$rows_empty":13}
["Colunas calculadas em tabelas"]
["Um exemplo da conveniência oferecida por tabelas: colunas calculadas. Digitar uma fórmula uma vez, e ela é preenchida automaticamente para você. Veja como funciona:"]
["As células C33 a H41 contêm dados com seis colunas: Departamento, Categoria, Out, Nov, Dez e Total."]
["Vá para a célula H34: Total."]
["Pressione Alt+= e pressione Enter."]
["A fórmula SOMA é preenchida automaticamente para baixo, assim, você não precisa fazê-lo "]
["Vá para a célula A47 para a próxima instrução.",null,"Departamento","Categoria","Out","Nov","Dez","Total"]
[null,null,"Hortifrúti","Legumes e Verduras",{"v":30000,"d":"R$ 30,000"},{"v":80000,"d":"R$ 80,000"},{"v":30000,"d":"R$ 30,000"}]
[null,null,"Hortifrúti","Fruta",{"v":10000,"d":"R$ 10,000"},{"v":30000,"d":"R$ 30,000"},{"v":40000,"d":"R$ 40,000"}]
[null,null,"Confeitaria","Pães",{"v":30000,"d":"R$ 30,000"},{"v":15000,"d":"R$ 15,000"},{"v":20000,"d":"R$ 20,000"}]
[null,null,"Confeitaria","Sobremesas",{"v":25000,"d":"R$ 25,000"},{"v":80000,"d":"R$ 80,000"},{"v":120000,"d":"R$ 120,000"}]
[null,null,"Lanchonete","Sanduíches",{"v":80000,"d":"R$ 80,000"},{"v":40000,"d":"R$ 40,000"},{"v":20000,"d":"R$ 20,000"}]
[null,null,"Lanchonete","Saladas",{"v":90000,"d":"R$ 90,000"},{"v":35000,"d":"R$ 35,000"},{"v":25000,"d":"R$ 25,000"}]
[null,null,"Carne","Vaca",{"v":90000,"d":"R$ 90,000"},{"v":110000,"d":"R$ 110,000"},{"v":200000,"d":"R$ 200,000"}]
[null,null,"Carne","Frango",{"v":75000,"d":"R$ 75,000"},{"v":82000,"d":"R$ 82,000"},{"v":150000,"d":"R$ 150,000"}]
[]
[]
[]
[]
[]
["Total de linhas em tabelas"]
["Outro recurso conveniente das tabelas são as linhas de total. Em vez de digitar uma fórmula de SOMA, o Excel pode gerar o total para você com uma simples opção. E o mesmo vale para a fórmula MÉDIA e para várias outras. Veja como funciona:"]
["As células C53 a E61 contêm dados com três colunas: Departamento, Categoria e Vendas."]
["Vá para qualquer célula no intervalo acima; por exemplo, a célula D57."]
["Na parte superior da janela do Excel, a guia Design de Ferramentas de Tabela será exibida. Pressione Alt+JI para entrar na guia Design acima da faixa de opções e pressione D para selecionar a Linha de Total dentro de Opções de Estilos de Tabela."]
["Uma nova linha é adicionada à parte inferior da tabela nas células C62 a E62."]
["O total de R$ 24.000 é adicionado à linha total, na célula E62. ",null,"Departamento","Categoria","Vendas"]
["Porém, e se você quiser saber a média? Selecione a célula E62: R$ 24.000.",null,"Hortifrúti","Legumes e Verduras",{"v":1000,"d":"R$ 1,000"}]
["Pressione Alt+Seta para baixo, use as teclas de direção para localizar a opção Média e pressione Enter. O valor médio de R$ 3.000 é mostrado.",null,"Hortifrúti","Fruta",{"v":2000,"d":"R$ 2,000"}]
["É BOM SABER: Há um atalho para mostrar e ocultar a linha de totais. Selecione dentro da tabela e pressione Ctrl+Shift+T.\n",null,"Confeitaria","Pães",{"v":3000,"d":"R$ 3,000"}]
["Vá para a célula A72 para a próxima instrução.",null,"Confeitaria","Sobremesas",{"v":1000,"d":"R$ 1,000"}]
[null,null,"Lanchonete","Sanduíches",{"v":2000,"d":"R$ 2,000"}]
[null,null,"Lanchonete","Saladas",{"v":3000,"d":"R$ 3,000"}]
[null,null,"Carne","Vaca",{"v":4000,"d":"R$ 4,000"}]
[null,null,"Carne","Frango",{"v":8000,"d":"R$ 8,000"}]
{"$rows_empty":10}
["Mais informações na Web"]
["Visão geral de tabelas do Excel"]
["Totalizar os dados em uma tabela do Excel"]
["Usar colunas calculadas em uma tabela do Excel"]
["Volte ao início pressionando Ctrl+Home. Para ir até a próxima etapa, pressione Ctrl+Page Down."," Pressione Ctrl+Page Down."]

{"sheet":"7. Listas suspensas","index":7,"n_rows":63,"n_cols":6,"rows_kept":63}
["Inserir uma lista suspensa"]
["Listas suspensas facilitam a entrada de dados para as pessoas. Veja como criar uma: "]
["As células C3 a D15 contêm dados com duas colunas: Alimentos e Departamento.",null,"Alimentação","Departamento"]
["Só queremos que três nomes de departamentos sejam entradas válidas para cada um dos alimentos à direita. Os departamentos são Hortifrúti, Carne e Confeitaria.",null,"Maçãs"]
["Vá para a célula D4. Pressione Ctrl+G, digite D4 e pressione Enter. Selecione todas as células de D4 a D15.",null,"Vaca"]
["Na guia Dados, selecione Validação de Dados ou pressione ALT+A,V para abrir a caixa de diálogo Validação de Dados. Pressione Tab até Permitir e selecione Lista. Pressione a tecla Tab novamente.",null,"Bananas"]
["Na caixa de texto Fonte, digite Hortifrúti, Carne, Confeitaria. Coloque vírgulas entre cada nome. Pressione Enter quando terminar.",null,"Limões"]
["Agora selecione a célula D4, que é a célula ao lado de Maçãs em C4. Pressione Alt+Seta para baixo. Você verá um menu suspenso com os três itens que adicionou: Hortifrúti, Carne e Confeitaria.",null,"Brócolis"]
["É BOM SABER: Listas suspensas ajudam a garantir que as pessoas insiram dados válidos. Portanto, faz sentido que caixas suspensas façam parte de um grupo maior de recursos, conhecido como validação de dados. \nHá outros métodos de validação de dados. Por exemplo, você pode restringir a entrada a números inteiros, datas ou até valores mínimos e máximos. Há muitas opções disponíveis, e você pode ler mais sobre elas selecionando o link na célula A61.",null,"Couve"]
["Veja mais detalhes abaixo: Vá para A27. Ou, para ir até a próxima etapa, pressione Ctrl+Page Down.",null,"Presunto"]
[null,null,"Pão"]
[null,null,"Frango"]
[null,null,"Biscoitos"]
[null,null,"Bolos"]
[null,null,"Tortas"]
{"$rows_empty":11}
["Prática recomendada para listas suspensas: use uma tabela"]
["Mostramos como inserir um menu suspenso para a lista de departamentos. Mas e se a lista mudar? Por exemplo, e se houver um novo departamento chamado Laticínios? Será necessário atualizar a caixa de diálogo de validação de dados. Há uma maneira mais eficiente, criando uma tabela primeiro:"]
["As células C31 a D43 contêm dados com duas colunas: Alimentos e Departamento. As células F31 a F34 contêm dados com uma coluna: Departamento."]
["Das células F31 a F34, selecione uma célula com um departamento. Por exemplo, selecione a célula F33: Carne "]
["Criar uma tabela pressionando Ctrl+T e Enter.",null,"Alimentação","Departamento",null,"Departamento"]
["Agora você configurará a validação de dados novamente. Na célula D31: Departamento, selecione todas as células em branco de D32 a D43.",null,"Maçãs",null,null,"Hortifrúti"]
["Na guia Dados, selecione Validação de Dados ou pressione ALT+A,V para abrir a caixa de diálogo Validação de Dados. Pressione Tab até Permitir e pressione a Seta para baixo para selecionar Lista. Pressione a tecla Tab novamente.",null,"Vaca",null,null,"Carne"]
["Na caixa de texto Fonte, digite =$F$32:$F$34 e pressione Enter.",null,"Bananas",null,null,"Confeitaria"]
["Você selecionou os valores na coluna única começando na célula F31: Departamento.",null,"Limões"]
["Agora, vá para a célula D32 e pressione Alt+Seta para baixo. Há somente três departamentos na lista suspensa: Hortifrúti, Carne e Confeitaria. Porém, se você adicionar um novo departamento na coluna F na célula F35: Confeitaria, essa lista será atualizada com o novo departamento. Experimente.",null,"Brócolis"]
["DICA ESPECIALIZADA: Muitas vezes, as pessoas deixam as listas de validação fora do caminho, em outra planilha. Assim, outras pessoas não ficarão tentadas a alterar a lista.\n",null,"Couve"]
["Vá para a célula A60 para a próxima instrução.",null,"Presunto"]
[null,null,"Pão"]
[null,null,"Frango"]
[null,null,"Biscoitos"]
[null,null,"Bolos"]
[null,null,"Tortas"]
{"$rows_empty":16}
["Mais informações na Web"]
["Aplicar validação de dados a células"]
["Criar uma lista suspensa"]
["Volte ao início pressionando Ctrl+Home. Para ir até a próxima etapa, pressione Ctrl+Page Down."]

{"sheet":"8. Análise","index":8,"n_rows":71,"n_cols":7,"rows_kept":71}
["Analisar dados rapidamente"]
["Veja como analisar dados para identificar tendências e padrões rapidamente:"]
["As células C5 a G13 contêm dados em cinco colunas: Departamento, Categoria, Out, Nov e Dez."]
["Vá para uma célula na tabela entre as células C5 a G13; por exemplo, vá para a célula E9 e pressione Ctrl+Q. O painel de Análise Rápida aparece."]
["Pressione a tecla Tab para entrar nas opções de formatação e pressione Enter para selecionar Barras de Dados.",null,"Departamento","Categoria","Out","Nov","Dez"]
["As células nas colunas Out, Nov e Dez, as células E6 a G13, têm barras de dados especiais que visualizam seus valores.",null,"Hortifrúti","Legumes e Verduras",{"v":30000,"d":"R$ 30,000"},{"v":80000,"d":"R$ 80,000"},{"v":30000,"d":"R$ 30,000"}]
["Agora, digamos que você queira remover as barras de dados. Selecione todo o intervalo de células de C5 a G13 e pressione Ctrl+P para exibir o painel de Análise Rápida novamente.",null,"Hortifrúti","Fruta",{"v":10000,"d":"R$ 10,000"},{"v":30000,"d":"R$ 30,000"},{"v":40000,"d":"R$ 40,000"}]
["Pressione a tecla Tab para entrar nas opções de formatação, pressione Seta para a direita para localizar Limpar... e pressione Enter.",null,"Confeitaria","Pães",{"v":30000,"d":"R$ 30,000"},{"v":15000,"d":"R$ 15,000"},{"v":20000,"d":"R$ 20,000"}]
["É BOM SABER: Quando você seleciona células, este botão é exibido. O nome é adequado, você não acha? Você sempre pode acessar o botão usando a tecla de atalho: Ctrl+Q. Se você tiver dúvidas sobre os dados selecionados, selecione essa opção e veja se ela fornece respostas. ",null,"Confeitaria","Sobremesas",{"v":25000,"d":"R$ 25,000"},{"v":80000,"d":"R$ 80,000"},{"v":120000,"d":"R$ 120,000"}]
["Veja mais detalhes abaixo: Vá para A27. Ou, para ir até a próxima etapa, pressione Ctrl+Page Down.",null,"Lanchonete","Sanduíche",{"v":80000,"d":"R$ 80,000"},{"v":40000,"d":"R$ 40,000"},{"v":20000,"d":"R$ 20,000"}]
[null,null,"Lanchonete","Saladas",{"v":90000,"d":"R$ 90,000"},{"v":35000,"d":"R$ 35,000"},{"v":25000,"d":"R$ 25,000"}]
[null,null,"Carne","Vaca",{"v":90000,"d":"R$ 90,000"},{"v":110000,"d":"R$ 110,000"},{"v":200000,"d":"R$ 200,000"}]
[null,null,"Carne","Frango",{"v":75000,"d":"R$ 75,000"},{"v":82000,"d":"R$ 82,000"},{"v":150000,"d":"R$ 150,000"}]
{"$rows_empty":13}
["Criar um gráfico rapidamente"]
["Você sempre pode usar a guia Inserir e criar um gráfico. Mas há outra maneira de criar um gráfico, usando a opção Análise Rápida. Porém, desta vez, vamos usar o atalho de teclado:"]
["As células C34 a G42 contêm dados com cinco colunas: Departamento, Categoria, Out, Nov e Dez."]
["Vá para uma célula dentro da tabela entre as células C34 e G42; por exemplo, vá para a célula D38 e pressione Ctrl+Q."]
["O painel de Análise Rápida aparece Pressione a Seta para a direita até encontrar Gráficos."]
["Pressione a tecla Tab para entrar nas opções de Gráficos e Enter para selecionar Coluna Agrupada."]
["Um novo gráfico de colunas agrupadas é exibido e está selecionado. Use as teclas de direção para movê-lo para o lugar que desejar. No gráfico, cada produto tem três colunas, uma para cada mês de vendas: Out, Nov e Dez."]
["Vá para a célula A47 para a próxima instrução.",null,"Departamento","Categoria","Out","Nov","Dez"]
[null,null,"Confeitaria","Pães",{"v":30000,"d":"R$ 30,000"},{"v":15000,"d":"R$ 15,000"},{"v":20000,"d":"R$ 20,000"}]
[null,null,"Confeitaria","Sobremesas",{"v":25000,"d":"R$ 25,000"},{"v":80000,"d":"R$ 80,000"},{"v":120000,"d":"R$ 120,000"}]
[null,null,"Lanchonete","Sanduíches",{"v":80000,"d":"R$ 80,000"},{"v":40000,"d":"R$ 40,000"},{"v":20000,"d":"R$ 20,000"}]
[null,null,"Lanchonete","Saladas",{"v":90000,"d":"R$ 90,000"},{"v":35000,"d":"R$ 35,000"},{"v":25000,"d":"R$ 25,000"}]
[null,null,"Carne","Vaca",{"v":90000,"d":"R$ 90,000"},{"v":110000,"d":"R$ 110,000"},{"v":200000,"d":"R$ 200,000"}]
[null,null,"Carne","Galinha",{"v":75000,"d":"R$ 75,000"},{"v":82000,"d":"R$ 82,000"},{"v":150000,"d":"R$ 150,000"}]
[null,null,"Hortifrúti","Legumes e Verduras",{"v":30000,"d":"R$ 30,000"},{"v":80000,"d":"R$ 80,000"},{"v":30000,"d":"R$ 30,000"}]
[null,null,"Hortifrúti","Fruta",{"v":10000,"d":"R$ 10,000"},{"v":30000,"d":"R$ 30,000"},{"v":40000,"d":"R$ 40,000"}]
[]
[]
[]
[]
["Criar minigráficos rapidamente"]
["Digamos que você queira pequenas linhas de tendência à direita desses dados para mostrar como os valores sobem ou descem durante os três meses. Você não precisa criar oito pequenos gráficos de linhas. Você pode criar minigráficos em vez disso."]
["As células C54 a G62 contêm dados com cinco colunas: Departamento, Categoria, Out, Nov e Dez."]
["Vá para uma célula dentro da tabela entre as células C55 e G62 e pressione Ctrl+Q."]
["No painel de Análise Rápida exibido, pressione a Seta para a direita até encontrar Minigráficos e pressione Tab para selecionar a opção Linha. Pressione Enter para adicionar Minigráficos à tabela."]
["Minigráficos aparecem à direita da coluna Dez nas células H55 a H62. Cada linha representa os dados dessa linha e mostra se os valores aumentam ou diminuem."]
["Para limpar os minigráficos, selecione as células H55 a H62. Pressione Alt+JD para entrar na guia Design de Ferramentas de Minigráfico acima da faixa de opções. Pressione C para selecionar a opção Limpar e pressione C novamente para selecionar a opção Limpar Minigráficos Selecionados."]
["Vá para a célula A68 para a próxima instrução.",null,"Departamento","Categoria","Out","Nov","Dez"]
[null,null,"Confeitaria","Pães",{"v":30000,"d":"R$ 30,000"},{"v":15000,"d":"R$ 15,000"},{"v":20000,"d":"R$ 20,000"}]
[null,null,"Confeitaria","Sobremesas",{"v":25000,"d":"R$ 25,000"},{"v":80000,"d":"R$ 80,000"},{"v":120000,"d":"R$ 120,000"}]
[null,null,"Lanchonete","Sanduíches",{"v":80000,"d":"R$ 80,000"},{"v":40000,"d":"R$ 40,000"},{"v":20000,"d":"R$ 20,000"}]
[null,null,"Lanchonete","Saladas",{"v":90000,"d":"R$ 90,000"},{"v":35000,"d":"R$ 35,000"},{"v":25000,"d":"R$ 25,000"}]
[null,null,"Carne","Vaca",{"v":90000,"d":"R$ 90,000"},{"v":110000,"d":"R$ 110,000"},{"v":200000,"d":"R$ 200,000"}]
[null,null,"Carne","Galinha",{"v":75000,"d":"R$ 75,000"},{"v":82000,"d":"R$ 82,000"},{"v":150000,"d":"R$ 150,000"}]
[null,null,"Hortifrúti","Legumes e Verduras",{"v":30000,"d":"R$ 30,000"},{"v":80000,"d":"R$ 80,000"},{"v":30000,"d":"R$ 30,000"}]
[null,null,"Hortifrúti","Fruta",{"v":10000,"d":"R$ 10,000"},{"v":30000,"d":"R$ 30,000"},{"v":40000,"d":"R$ 40,000"}]
[]
[]
[]
[]
[]
["Mais informações na Web"]
["Analisar os dados instantaneamente"]
["Analisar tendências em dados usando minigráficos"]
["Volte ao início pressionando Ctrl+Home. Para ir até a próxima etapa, pressione Ctrl+Page Down."]

{"sheet":"9. Gráficos","index":9,"n_rows":73,"n_cols":6,"rows_kept":73}
["Ótimos gráficos recomendados para você"]
["As células C5 a D11 contêm dados com duas colunas: Ano e Participação em conferência."]
["Vá para qualquer célula da tabela entre as células C5 e D11; por exemplo, vá para a célula C6. Pressione Ctrl+G, digite C6 e pressione Enter."]
["Agora, pressione Alt+T para entrar na guia Inserir Gráficos acima da faixa de opções. Pressione U1 para exibir opções de Gráficos Recomendados."]
["Várias recomendações serão exibidas. Pressione Tab para entrar na lista, use as teclas de direção para localizar uma opção chamada Colunas agrupadas e pressione Enter.",null,"Ano","Participação em conferência"]
["Um gráfico de colunas é exibido mostrando o número total de participantes da conferência por ano. Use as teclas de direção para mover o gráfico para onde quiser.",null,{"$f":"YEAR(TODAY())-5","v":2015},500]
["Agora, você adicionará uma linha de tendência. Selecione o gráfico que você acabou de criar e pressione Alt+JC para entrar na guia Design de Ferramentas de Gráfico acima da faixa de opções. ",null,{"$f":"YEAR(TODAY())-4","v":2016},800]
["Pressione A para adicionar elemento de gráfico pressione a Seta para baixo para localizar a opção de Linha de Tendência. Pressione a Seta para a direita para abrir as opções de Linha de Tendência e a Seta para baixo para navegar até a opção Linear e pressione Enter. Agora você tem uma linha de tendência que mostra a orientação geral das unidades vendidas ao longo do tempo.",null,{"$f":"YEAR(TODAY())-3","v":2017},1000]
["CRÉDITO ADICIONAL: Quer uma tabela de dados diretamente sob o gráfico? Selecione o gráfico. Pressione Alt+JC para entrar na guia Design de Ferramentas de Gráfico. Pressione A para Adicionar Elemento Gráfico. Pressione a Seta para baixo para localizar a opção Tabela de Dados e pressione a Seta para a direita para abrir as opções de Tabela de Dados. Pressione a Seta para baixo até localizar a opção Com Códigos de Legenda. Selecione Com Códigos de Legenda e pressione Enter para adicionar Códigos de Legenda ao gráfico.\n",null,{"$f":"YEAR(TODAY())-2","v":2018},900]
["Veja mais detalhes abaixo: Vá para A27. Ou, para ir até a próxima etapa, pressione Ctrl+Page Down.",null,{"$f":"YEAR(TODAY())-1","v":2019},1000]
[null,null,{"$f":"YEAR(TODAY())","v":2020},1200]
{"$rows_empty":15}
["Eixos verticais e horizontais"]
["Na escola, você deve ter aprendido que há um eixo x e um eixo y. O Excel também tem esses dois eixos, mas ele os chama de algo diferente. "]
["No Excel, eles são chamados da seguinte forma:"]
["• O eixo x na parte inferior é chamado de eixo horizontal. "]
["• O eixo y para cima e para baixo é chamado de eixo vertical. "]
["Cada eixo pode ser um eixo de valor ou de categoria. "]
["• Um eixo de valor representa valores numéricos. Por exemplo, um eixo de valor pode representar dólares, horas, duração, temperatura e assim por diante. O eixo vertical do gráfico à direita começando na célula D30 é um eixo de valor. "]
["• Um eixo de categoria representa itens como datas, nomes de pessoas e nomes de produtos. O eixo horizontal do gráfico à direita começando na célula D30 contém anos, portanto, esse é um eixo de categoria. "]
["Vá para a célula A52 para a próxima instrução."]
{"$rows_empty":16}
["Eixo secundário"]
["Você também pode usar um eixo secundário em um gráfico. Um eixo secundário é um eixo de valor adicional que pode mostrar valores diferentes do eixo de valor."]
["Um exemplo comum está no gráfico à direita, começando na célula D52. É o mesmo que o gráfico acima, mas tem um eixo vertical secundário adicional que representa os valores de vendas de cada mês. Alguns diriam que, tendo um eixo secundário, você quase tem \"dois gráficos em um\". Isso é verdade. Esse gráfico é um gráfico de colunas e um gráfico de linhas. Esses tipos de gráficos são chamados de gráficos de Combinação no Excel. Se você estiver interessado nesse tipo de gráfico, selecione o hiperlink na célula A70."]
["As células D67 a F73 contêm dados com três colunas: Data, Participação em conferência e Vendas de alimentos. A coluna Vendas de alimentos contém dados que dão suporte ao eixo secundário do gráfico descrito acima."]
["CRÉDITO ADICIONAL: Experimente criar um gráfico de combinação. Selecione a tabela inteira das células D67 a F73. Use a opção de Análise Rápida, Ctrl+Q, para localizar a opção de Gráficos. Pressione Tab para entrar nas opções de gráficos e pressione Seta para a direita para selecionar Mais... As opções de Gráficos Recomendados aparecem. Pressione Seta para a direita para selecionar a guia Todos os Gráficos e pressione a Seta para baixo até encontrar a opção de Combinação, listada na parte inferior. Pressione Tab duas vezes para digitar o nome da Série: Pressione a Seta para baixo duas vezes para localizar \"Vendas de Alimentos\" e pressione a tecla Tab duas vezes para selecionar a opção Eixo Secundário. Pressione a Barra de espaços para habilitar essa opção e pressione Enter. \n"]
["Vá para a célula A68 para a próxima instrução."]
{"$rows_empty":9}
[{"$nulls":3},"Data","Participação em conferência","Vendas de alimentos"]
["Mais informações na Web",null,null,{"$f":"YEAR(TODAY())-5","v":2015},500,{"v":5000,"d":"R$ 5,000"}]
["Criar um gráfico do início ao fim",null,null,{"$f":"YEAR(TODAY())-4","v":2016},800,{"v":11200,"d":"R$ 11,200"}]
["Criar um gráfico de combinação com um eixo secundário",null,null,{"$f":"YEAR(TODAY())-3","v":2017},1000,{"v":30000,"d":"R$ 30,000"}]
["Tipos de gráficos disponíveis no Office",null,null,{"$f":"YEAR(TODAY())-2","v":2018},900,{"v":25000,"d":"R$ 25,000"}]
["Volte ao início pressionando Ctrl+Home. Para ir até a próxima etapa, pressione Ctrl+Page Down.",null,null,{"$f":"YEAR(TODAY())-1","v":2019},1000,{"v":5000,"d":"R$ 5,000"}]
[{"$nulls":3},{"$f":"YEAR(TODAY())","v":2020},1200,{"v":8000,"d":"R$ 8,000"}]

{"sheet":"10. Tabelas Dinâmicas","index":10,"n_rows":61,"n_cols":6,"rows_kept":61}
["Resumir dados com Tabelas Dinâmicas"]
["As células C3 a F9 contêm dados com quatro colunas: Data, Vendedor, Produto e Valor."]
["Examine as colunas de Data, Vendedor, Produto e Valor. Posso identificar rapidamente qual produto é mais lucrativo? Ou qual é o principal vendedor? A Tabela Dinâmica nas células E11 a F15 pode ajudar.",null,"Data","Vendedor","Produto","Valor"]
["Quando criamos a Tabela Dinâmica, clicamos em alguns botões para que os dados fossem resumidos. Agora sabemos qual produto é mais lucrativo. ",null,{"$f":"TODAY()-57","v":"2020-01-15"},"Lara","Cerveja",{"v":1400,"d":"R$ 1,400"}]
["A seguir, você vai dinamizar os dados para descobrir qual é o vendedor principal. Pressione Ctrl+G, digite E12 e pressione Enter. Sua seleção está agora dentro da Tabela Dinâmica. ",null,{"$f":"TODAY()-52","v":"2020-01-20"},"Marco","Vinho",{"v":1010,"d":"R$ 1,010"}]
["Pressione SHIFT+F6 até entrar no painel Campos da Tabela Dinâmica. Se o painel não estiver aberto, pressione ALT+JI e L1 para iniciar o painel Campos da Tabela Dinâmica. O foco usará por padrão a caixa de texto de Pesquisa: \"Digite palavras para pesquisar para edição\". Pressione TAB até chegar ao botão Produto. Pressione Barra de espaço para entrar no menu de contexto e pressione SETA PARA BAIXO até acessar o campo Remover. Pressione Enter. ",null,{"$f":"TODAY()-35","v":"2020-02-06"},"Lara","Cerveja",{"v":750,"d":"R$ 750"}]
["Agora, pressione Tab até acessar a faixa de opções: Data, Vendedor, Produto e Valor. Use as setas para localizar a caixa de seleção Vendedor. Pressione a Barra de espaços para adicionar o campo Vendedor. Depois, pressione SHIFT+F6 até acessar a tabela PivotTableSample. Em seguida, vá para a célula F12. Anne é a vendedora líder com 2150.",null,{"$f":"TODAY()-31","v":"2020-02-10"},"Marco","Refrigerante",{"v":510,"d":"R$ 510"}]
["Veja mais detalhes abaixo: Vá para A27. Ou, para ir até a próxima etapa, pressione Ctrl+Page Down.",null,{"$f":"TODAY()-11","v":"2020-03-01"},"Mila","Refrigerante",{"v":1600,"d":"R$ 1,600"}]
[null,null,{"$f":"TODAY()","v":"2020-03-12"},"Laura","Vinho",{"v":680,"d":"R$ 680"}]
[]
[{"$nulls":4},"Rótulos de Linha","Soma de Valor"]
[{"$nulls":4},"Cerveja",{"v":2150,"d":"R$ 2,150"}]
[{"$nulls":4},"Refrigerante",{"v":2110,"d":"R$ 2,110"}]
[{"$nulls":4},"Vinho",{"v":1690,"d":"R$ 1,690"}]
[{"$nulls":4},"Total Geral",{"v":5950,"d":"R$ 5,950"}]
{"$rows_empty":11}
["Criar uma Tabela Dinâmica"]
["Agora, você criará a Tabela Dinâmica por conta própria para que saiba como criar uma quando precisar resumir dados."]
["As células C34 a F40 contêm dados com quatro colunas: Data, Vendedor, Produto e Valor."]
["Selecione uma célula dentro da tabela. Por exemplo, vá para a célula E38 e pressione Alt+JI para entrar no menu de Design acima da faixa de opções. Pressione E para inserir uma Tabela Dinâmica."]
["Será exibida uma caixa de diálogo Criar Tabela Dinâmica. O foco está em Selecionar uma tabela ou intervalo. Deixe esta opção de botão de opção marcada e pressione a tecla Tab para escolher onde você deseja que o relatório de Tabela Dinâmica seja colocado. A opção padrão é selecionada: Nova Planilha. Pressione a Seta para baixo para selecionar Planilha Existente. Pressione Tab para entrar na caixa de texto Local, digite C42 e pressione Enter."]
["O painel Campos de Tabela Dinâmica é mostrado à direita. Pressione SHIFT+F6 até chegar à caixa de texto Pesquisar: Digite palavras para pesquisar para edição. "]
["Pressione a tecla Tab para entrar na lista de categorias. Pressione a Seta para baixo para localizar a caixa de seleção Produto. Pressione a Barra de espaços para selecionar Produto.\nQuando você faz isso, o campo Produto é adicionado à área Linhas na parte inferior do painel. E os dados do produto aparecem como rótulos de Linha na nova Tabela Dinâmica."]
["Agora, pressione a Seta para baixo para localizar a caixa de seleção Valor. \nQuando você faz isso, o campo Valor é adicionado à área Valores na parte inferior do painel. Ao mesmo tempo, os valores são totalizados para cada produto na Tabela Dinâmica.\n",null,"Data","Vendedor","Produto","Valor"]
["Parabéns, você criou uma Tabela Dinâmica. Mas você pode fazer muito mais. Vá para a célula A60 se você quiser saber mais.",null,{"$f":"TODAY()-57","v":"2020-01-15"},"Lara","Cerveja",{"v":1400,"d":"R$ 1,400"}]
["Vá para a célula A58 para a próxima instrução.",null,{"$f":"TODAY()-52","v":"2020-01-20"},"Marco","Vinho",{"v":1010,"d":"R$ 1,010"}]
[null,null,{"$f":"TODAY()-35","v":"2020-02-06"},"Lara","Cerveja",{"v":750,"d":"R$ 750"}]
[null,null,{"$f":"TODAY()-31","v":"2020-02-10"},"Marco","Refrigerante",{"v":510,"d":"R$ 510"}]
[null,null,{"$f":"TODAY()-11","v":"2020-03-01"},"Mila","Refrigerante",{"v":1600,"d":"R$ 1,600"}]
[null,null,{"$f":"TODAY()","v":"2020-03-12"},"Laura","Vinho",{"v":680,"d":"R$ 680"}]
{"$rows_empty":17}
["Mais informações na Web"]
["Criar uma Tabela Dinâmica para analisar dados de planilha"]
["Use a Lista de Campos para organizar os campos em uma Tabela Dinâmica"]
["Volte ao início pressionando Ctrl+Home. Para ir até a próxima etapa, pressione Ctrl+Page Down."]

{"sheet":"Saiba mais","index":11,"n_rows":5,"n_cols":1,"rows_kept":5}
["Mais dúvidas sobre o Excel?"]
["Pressione Alt+G e digite o que você deseja saber."]
["Vá em frente. Há muito mais para aprender com o Excel:"]
["Comunidade: Faça perguntas e conecte-se com outros fãs do Excel.\n"]
["Quais são as outras novidades?\nOs assinantes do Office 365 recebem atualizações contínuas e novos recursos.\n\n"]